[Event "*** Titled Tuesday Blitz"]
[Site "Chess.com"]
[Date "2020.04.14"]
[Round "7"]
[White "Nesty_Javi_Chess"]
[Black "Hanging_pointer"]
[Result "0-1"]
[WhiteElo "2771"]
[BlackElo "2568"]
[TimeControl "180+1"]
[EndTime "11:13:59 PDT"]
[Termination "Hanging_pointer won on time"]

1. e4 {[%clk 0:03:00.5]} 1... c6 {[%clk 0:02:59]} 2. d4 {[%clk 0:03:00.4]} 2...
d5 {[%clk 0:02:59.9]} 3. e5 {[%clk 0:03:01.3]} 3... Bf5 {[%clk 0:02:58.8]} 4. c3
{[%clk 0:03:01.7]} 4... e6 {[%clk 0:02:57.7]} 5. Bd3 {[%clk 0:03:01.2]} 5...
Bxd3 {[%clk 0:02:55.6]} 6. Qxd3 {[%clk 0:03:02.1]} 6... c5 {[%clk 0:02:56.5]} 7.
Ne2 {[%clk 0:03:02.5]} 7... Nc6 {[%clk 0:02:53.7]} 8. O-O {[%clk 0:03:02.5]}
8... Nge7 {[%clk 0:02:43.1]} 9. Nd2 {[%clk 0:03:02.4]} 9... Nf5 {[%clk
0:02:41.8]} 10. Nf3 {[%clk 0:03:02.7]} 10... Be7 {[%clk 0:02:40.5]} 11. g4
{[%clk 0:03:02.5]} 11... Nh4 {[%clk 0:02:38.8]} 12. Nxh4 {[%clk 0:03:03.1]}
12... Bxh4 {[%clk 0:02:39.7]} 13. f4 {[%clk 0:03:03.7]} 13... cxd4 {[%clk
0:02:34.8]} 14. cxd4 {[%clk 0:02:56.6]} 14... Be7 {[%clk 0:02:34.8]} 15. f5
{[%clk 0:02:54.6]} 15... O-O {[%clk 0:02:34.2]} 16. f6 {[%clk 0:02:23.4]} 16...
gxf6 {[%clk 0:02:19.7]} 17. Bh6 {[%clk 0:02:18.5]} 17... fxe5 {[%clk 0:02:17.8]}
18. Bxf8 {[%clk 0:02:18.2]} 18... Bxf8 {[%clk 0:02:18.7]} 19. Rxf7 {[%clk
0:01:55.5]} 19... Kxf7 {[%clk 0:02:08.6]} 20. Qxh7+ {[%clk 0:01:53.2]} 20... Ke8
{[%clk 0:02:09]} 21. Rf1 {[%clk 0:01:52.9]} 21... Ne7 {[%clk 0:01:59.3]} 22. g5
{[%clk 0:01:24.7]} 22... Kd7 {[%clk 0:01:56]} 23. g6 {[%clk 0:01:24.7]} 23...
exd4 {[%clk 0:01:53.6]} 24. Rf7 {[%clk 0:01:14.2]} 24... d3 {[%clk 0:01:47.6]}
25. Nc3 {[%clk 0:00:50.7]} 25... Qb6+ {[%clk 0:01:47.4]} 26. Kh1 {[%clk
0:00:50.8]} 26... Qxb2 {[%clk 0:01:48.3]} 27. g7 {[%clk 0:00:50.8]} 27... Bxg7
{[%clk 0:01:38.6]} 28. Rxe7+ {[%clk 0:00:50.7]} 28... Kxe7 {[%clk 0:01:38]} 29.
Qxg7+ {[%clk 0:00:50.9]} 29... Kd8 {[%clk 0:01:36]} 30. Qh8+ {[%clk 0:00:09.6]}
30... Kd7 {[%clk 0:01:33.3]} 31. Qxa8 {[%clk 0:00:09.7]} 31... Qxc3 {[%clk
0:01:27]} 32. Qxb7+ {[%clk 0:00:09.7]} 32... Kd6 {[%clk 0:01:27.1]} 33. Qb8+
{[%clk 0:00:09.8]} 33... Kc5 {[%clk 0:01:26.8]} 34. Qxa7+ {[%clk 0:00:09]} 34...
Kc4 {[%clk 0:01:27.4]} 35. Qa6+ {[%clk 0:00:06.4]} 35... Kd4 {[%clk 0:01:27]}
36. Qb6+ {[%clk 0:00:06.6]} 36... Qc5 {[%clk 0:01:26.5]} 37. Qb2+ {[%clk
0:00:04.1]} 37... Ke3 {[%clk 0:01:23.7]} 38. Qe5+ {[%clk 0:00:04.4]} 38... Kd2
{[%clk 0:01:24.1]} 39. h4 {[%clk 0:00:03.5]} 39... Kc2 {[%clk 0:01:11.1]} 40. h5
{[%clk 0:00:02.6]} 40... d2 {[%clk 0:01:11.1]} 41. Qe2 {[%clk 0:00:03]} 41...
Qc4 {[%clk 0:01:08.3]} 42. Qf2 {[%clk 0:00:01.6]} 42... Qe4+ {[%clk 0:01:08.2]}
43. Kh2 {[%clk 0:00:01.8]} 43... e5 {[%clk 0:01:06.2]} 44. Qc5+ {[%clk
0:00:01.8]} 44... Qc4 {[%clk 0:01:05.2]} 45. Qf2 {[%clk 0:00:02.1]} 45... Qf4+
{[%clk 0:01:05]} 46. Qxf4 {[%clk 0:00:02.6]} 46... exf4 {[%clk 0:01:05.9]} 0-1

[Event "*** Titled Tuesday Blitz"]
[Site "Chess.com"]
[Date "2020.04.14"]
[Round "7"]
[White "LuisFSiles"]
[Black "earling8018"]
[Result "1-0"]
[WhiteElo "2308"]
[BlackElo "2031"]
[TimeControl "180+1"]
[EndTime "11:13:59 PDT"]
[Termination "LuisFSiles won on time"]

1. d4 {[%clk 0:03:00.9]} 1... d5 {[%clk 0:02:59.3]} 2. c4 {[%clk 0:02:59.2]}
2... e6 {[%clk 0:02:59.3]} 3. Nc3 {[%clk 0:02:58.7]} 3... Nf6 {[%clk 0:02:59.2]}
4. cxd5 {[%clk 0:02:58.3]} 4... exd5 {[%clk 0:02:59]} 5. Bg5 {[%clk 0:02:58.6]}
5... Be7 {[%clk 0:02:59.3]} 6. e3 {[%clk 0:02:58.8]} 6... O-O {[%clk 0:02:59.6]}
7. Qc2 {[%clk 0:02:58.9]} 7... c6 {[%clk 0:02:58.7]} 8. Bd3 {[%clk 0:02:58.4]}
8... Nbd7 {[%clk 0:02:59]} 9. Nge2 {[%clk 0:02:56.3]} 9... Re8 {[%clk
0:02:59.3]} 10. O-O {[%clk 0:02:55]} 10... Nf8 {[%clk 0:02:59.6]} 11. Rad1
{[%clk 0:02:50.6]} 11... Ng6 {[%clk 0:02:54.5]} 12. f3 {[%clk 0:02:42.3]} 12...
Nh5 {[%clk 0:02:48.8]} 13. Bxe7 {[%clk 0:02:39.5]} 13... Qxe7 {[%clk 0:02:49]}
14. e4 {[%clk 0:02:38.2]} 14... Nhf4 {[%clk 0:02:41.4]} 15. e5 {[%clk
0:02:25.7]} 15... Qg5 {[%clk 0:02:07.7]} 16. g3 {[%clk 0:02:16.5]} 16... Nh3+
{[%clk 0:01:52.4]} 17. Kh1 {[%clk 0:02:10.6]} 17... Qe3 {[%clk 0:01:48.7]} 18.
Kg2 {[%clk 0:02:03.1]} 18... Qh6 {[%clk 0:01:08]} 19. f4 {[%clk 0:01:45.4]}
19... Bg4 {[%clk 0:01:01.6]} 20. Rde1 {[%clk 0:01:40.1]} 20... Nf8 {[%clk
0:00:26.6]} 21. Qc1 {[%clk 0:01:19.3]} 21... f5 {[%clk 0:00:25.7]} 22. Qe3
{[%clk 0:01:14.8]} 22... Ne6 {[%clk 0:00:23.9]} 23. Ng1 {[%clk 0:01:13.5]} 23...
Nxg1 {[%clk 0:00:22.8]} 24. Kxg1 {[%clk 0:01:14.4]} 24... Qh3 {[%clk 0:00:20.2]}
25. Rf2 {[%clk 0:01:12.7]} 25... h5 {[%clk 0:00:19.8]} 26. Bf1 {[%clk
0:01:12.5]} 26... Kf7 {[%clk 0:00:10]} 27. Bxh3 {[%clk 0:01:11]} 27... Bxh3
{[%clk 0:00:10.3]} 28. b4 {[%clk 0:01:04.2]} 28... b5 {[%clk 0:00:09.1]} 29. Rc1
{[%clk 0:01:02.4]} 29... a5 {[%clk 0:00:08.4]} 30. bxa5 {[%clk 0:00:56.4]} 30...
Rxa5 {[%clk 0:00:07.5]} 31. Nd1 {[%clk 0:00:56.9]} 31... Rea8 {[%clk 0:00:04.8]}
32. Rxc6 {[%clk 0:00:46.7]} 32... Ra3 {[%clk 0:00:03.7]} 33. Qc1 {[%clk
0:00:43]} 33... Rxa2 {[%clk 0:00:02.9]} 34. Rxe6 {[%clk 0:00:40.4]} 34... Kxe6
{[%clk 0:00:01.2]} 35. Qc6+ {[%clk 0:00:39.5]} 35... Kf7 {[%clk 0:00:01.4]} 36.
Qxd5+ {[%clk 0:00:39.5]} 36... Kf8 {[%clk 0:00:01.2]} 37. Rxa2 {[%clk
0:00:39.4]} 1-0

[Event "*** Titled Tuesday Blitz"]
[Site "Chess.com"]
[Date "2020.04.14"]
[Round "7"]
[White "want2lose"]
[Black "INLOVEWITHF"]
[Result "1/2-1/2"]
[WhiteElo "2755"]
[BlackElo "2593"]
[TimeControl "180+1"]
[EndTime "11:14:00 PDT"]
[Termination "Game drawn by repetition"]

1. Nf3 {[%clk 0:02:20.4]} 1... Nf6 {[%clk 0:02:59.2]} 2. g3 {[%clk 0:02:21.3]}
2... g6 {[%clk 0:02:59.5]} 3. Bg2 {[%clk 0:02:22.2]} 3... Bg7 {[%clk 0:03:00.1]}
4. O-O {[%clk 0:02:23.1]} 4... O-O {[%clk 0:03:00.8]} 5. c4 {[%clk 0:02:23.7]}
5... d6 {[%clk 0:03:00.9]} 6. d4 {[%clk 0:02:24.2]} 6... Nc6 {[%clk 0:02:59.6]}
7. d5 {[%clk 0:02:24.7]} 7... Na5 {[%clk 0:02:57.9]} 8. Nfd2 {[%clk 0:02:25.6]}
8... c5 {[%clk 0:02:56.5]} 9. Nc3 {[%clk 0:02:25.7]} 9... Rb8 {[%clk 0:02:52.8]}
10. Rb1 {[%clk 0:02:25.7]} 10... a6 {[%clk 0:02:53.2]} 11. b3 {[%clk 0:02:25.7]}
11... b5 {[%clk 0:02:52.8]} 12. Qc2 {[%clk 0:02:26.2]} 12... e6 {[%clk
0:02:46.7]} 13. Bb2 {[%clk 0:02:21.5]} 13... exd5 {[%clk 0:02:45.5]} 14. Nxd5
{[%clk 0:02:20.9]} 14... Nxd5 {[%clk 0:02:41.5]} 15. Bxg7 {[%clk 0:02:18.8]}
15... Kxg7 {[%clk 0:02:35.1]} 16. Bxd5 {[%clk 0:02:15.7]} 16... Qf6 {[%clk
0:02:15.9]} 17. Rbd1 {[%clk 0:01:46.3]} 17... Bf5 {[%clk 0:02:12.7]} 18. Be4
{[%clk 0:01:43.7]} 18... Bh3 {[%clk 0:02:03.9]} 19. Rfe1 {[%clk 0:01:38.4]}
19... Rfe8 {[%clk 0:01:54.5]} 20. Qd3 {[%clk 0:01:16.3]} 20... Rb6 {[%clk
0:01:31.9]} 21. Bd5 {[%clk 0:01:12.1]} 21... Bf5 {[%clk 0:01:18.5]} 22. e4
{[%clk 0:01:08.1]} 22... Bg4 {[%clk 0:01:16.5]} 23. f3 {[%clk 0:01:08.3]} 23...
Bd7 {[%clk 0:01:14.8]} 24. f4 {[%clk 0:01:04]} 24... Bg4 {[%clk 0:01:03.6]} 25.
Rc1 {[%clk 0:01:01.8]} 25... bxc4 {[%clk 0:00:59]} 26. Nxc4 {[%clk 0:01:02.7]}
26... Nxc4 {[%clk 0:00:58.1]} 27. Bxc4 {[%clk 0:01:02.9]} 27... a5 {[%clk
0:00:44.2]} 28. Kg2 {[%clk 0:01:01.6]} 28... a4 {[%clk 0:00:37.8]} 29. Bb5
{[%clk 0:00:47]} 29... Rxb5 {[%clk 0:00:28.8]} 30. Qxb5 {[%clk 0:00:44]} 30...
Qb2+ {[%clk 0:00:28.7]} 31. Kg1 {[%clk 0:00:41.1]} 31... Qd4+ {[%clk 0:00:22]}
32. Kg2 {[%clk 0:00:37.5]} 32... Qd2+ {[%clk 0:00:18.3]} 33. Kg1 {[%clk
0:00:35]} 33... Qd4+ {[%clk 0:00:10.4]} 34. Kg2 {[%clk 0:00:26.4]} 34... Qd2+
{[%clk 0:00:09.6]} 35. Kg1 {[%clk 0:00:25.2]} 35... Qd4+ {[%clk 0:00:07.8]}
1/2-1/2

[Event "*** Titled Tuesday Blitz"]
[Site "Chess.com"]
[Date "2020.04.14"]
[Round "7"]
[White "dukicz123"]
[Black "Onwgs"]
[Result "0-1"]
[WhiteElo "2544"]
[BlackElo "2419"]
[TimeControl "180+1"]
[EndTime "11:14:01 PDT"]
[Termination "Onwgs won by resignation"]

1. e4 {[%clk 0:03:00.9]} 1... c5 {[%clk 0:02:58.5]} 2. Nf3 {[%clk 0:03:00.9]}
2... e6 {[%clk 0:02:59]} 3. d4 {[%clk 0:03:01.3]} 3... cxd4 {[%clk 0:02:59.7]}
4. Nxd4 {[%clk 0:03:02.2]} 4... a6 {[%clk 0:03:00.4]} 5. Bd3 {[%clk 0:03:02.3]}
5... Bc5 {[%clk 0:03:00.9]} 6. Nb3 {[%clk 0:03:02.5]} 6... Ba7 {[%clk
0:03:01.7]} 7. O-O {[%clk 0:03:00.8]} 7... Nc6 {[%clk 0:03:02.1]} 8. Qe2 {[%clk
0:02:58.5]} 8... d6 {[%clk 0:03:01.8]} 9. Be3 {[%clk 0:02:58.6]} 9... Nf6 {[%clk
0:03:02.5]} 10. Bxa7 {[%clk 0:02:57.7]} 10... Rxa7 {[%clk 0:03:02.8]} 11. f4
{[%clk 0:02:38.6]} 11... e5 {[%clk 0:02:58.1]} 12. fxe5 {[%clk 0:02:18.5]} 12...
Nxe5 {[%clk 0:02:55.3]} 13. Nc3 {[%clk 0:02:16.4]} 13... O-O {[%clk 0:02:51.9]}
14. Rad1 {[%clk 0:02:09]} 14... b5 {[%clk 0:02:52]} 15. Qe3 {[%clk 0:01:57.4]}
15... Re7 {[%clk 0:02:50.7]} 16. h3 {[%clk 0:01:53.9]} 16... Bb7 {[%clk
0:02:45.7]} 17. Nd4 {[%clk 0:01:40.5]} 17... Ng6 {[%clk 0:02:41]} 18. Nf5 {[%clk
0:01:39.6]} 18... Re5 {[%clk 0:02:41.1]} 19. Qd4 {[%clk 0:01:34.5]} 19... Re6
{[%clk 0:02:34.4]} 20. g4 {[%clk 0:01:12.2]} 20... Rfe8 {[%clk 0:02:28.4]} 21.
Rde1 {[%clk 0:00:54.5]} 21... d5 {[%clk 0:02:21.8]} 22. Nxg7 {[%clk 0:00:53.5]}
22... Kxg7 {[%clk 0:02:19.4]} 23. g5 {[%clk 0:00:53.9]} 23... dxe4 {[%clk
0:02:19.8]} 24. gxf6+ {[%clk 0:00:54.4]} 24... Kg8 {[%clk 0:02:19.6]} 25. Qxd8
{[%clk 0:00:46.5]} 25... Rxd8 {[%clk 0:02:20]} 26. Bxe4 {[%clk 0:00:47.4]} 26...
Rde8 {[%clk 0:02:19]} 27. Bxb7 {[%clk 0:00:38.5]} 27... Rxe1 {[%clk 0:02:17.7]}
28. Bxa6 {[%clk 0:00:38.9]} 28... Rxf1+ {[%clk 0:02:14.8]} 29. Kxf1 {[%clk
0:00:39.3]} 29... b4 {[%clk 0:02:14.1]} 30. Nd5 {[%clk 0:00:38.9]} 30... Re4
{[%clk 0:02:10.8]} 31. Bd3 {[%clk 0:00:30]} 31... Rd4 {[%clk 0:02:09.3]} 32.
Ne7+ {[%clk 0:00:23.7]} 32... Kf8 {[%clk 0:02:06.9]} 33. Nc6 {[%clk 0:00:11.5]}
33... Rf4+ {[%clk 0:02:02.7]} 34. Kg2 {[%clk 0:00:12.2]} 34... h5 {[%clk
0:02:01.8]} 35. Bxg6 {[%clk 0:00:08.4]} 35... fxg6 {[%clk 0:02:01.3]} 36. Kg3
{[%clk 0:00:09]} 36... g5 {[%clk 0:01:54.8]} 37. Ne5 {[%clk 0:00:04.9]} 37...
h4+ {[%clk 0:01:49.5]} 38. Kg2 {[%clk 0:00:04.8]} 38... Re4 {[%clk 0:01:50.2]}
39. Nd3 {[%clk 0:00:04.7]} 39... Re2+ {[%clk 0:01:45.7]} 40. Kf3 {[%clk
0:00:05.1]} 40... Rxc2 {[%clk 0:01:45.4]} 41. Kg4 {[%clk 0:00:05.4]} 41... Rg2+
{[%clk 0:01:42.5]} 42. Kh5 {[%clk 0:00:05.6]} 42... Kf7 {[%clk 0:01:40.2]} 43.
Nxb4 {[%clk 0:00:03.4]} 43... Kxf6 {[%clk 0:01:40.5]} 44. Nd5+ {[%clk
0:00:03.5]} 44... Ke5 {[%clk 0:01:39.2]} 45. Ne3 {[%clk 0:00:03.8]} 45... Rg3
{[%clk 0:01:36.3]} 46. Nc4+ {[%clk 0:00:01.6]} 46... Kf4 {[%clk 0:01:31.1]} 47.
b4 {[%clk 0:00:02.1]} 47... Rxh3 {[%clk 0:01:31]} 48. b5 {[%clk 0:00:02.8]}
48... Rh1 {[%clk 0:01:30.6]} 49. b6 {[%clk 0:00:03.3]} 49... Rb1 {[%clk
0:01:29.3]} 50. a4 {[%clk 0:00:03]} 50... h3 {[%clk 0:01:29.8]} 51. a5 {[%clk
0:00:03.5]} 51... h2 {[%clk 0:01:30]} 52. a6 {[%clk 0:00:03.2]} 52... h1=Q+
{[%clk 0:01:28.4]} 53. Kg6 {[%clk 0:00:04.1]} 53... Qe4+ {[%clk 0:01:28.2]} 0-1

[Event "*** Titled Tuesday Blitz"]
[Site "Chess.com"]
[Date "2020.04.14"]
[Round "7"]
[White "figo13"]
[Black "lrestevez"]
[Result "0-1"]
[WhiteElo "2326"]
[BlackElo "2171"]
[TimeControl "180+1"]
[EndTime "11:14:02 PDT"]
[Termination "lrestevez won on time"]

1. d4 {[%clk 0:03:00.9]} 1... Nf6 {[%clk 0:02:58.2]} 2. c4 {[%clk 0:03:00.9]}
2... e5 {[%clk 0:02:57.7]} 3. e3 {[%clk 0:02:59.9]} 3... exd4 {[%clk 0:02:56.5]}
4. exd4 {[%clk 0:02:59.7]} 4... Bb4+ {[%clk 0:02:57.1]} 5. Nc3 {[%clk
0:02:58.6]} 5... O-O {[%clk 0:02:57.4]} 6. Bd3 {[%clk 0:02:58]} 6... Re8+ {[%clk
0:02:57.6]} 7. Ne2 {[%clk 0:02:57.4]} 7... d5 {[%clk 0:02:55.5]} 8. O-O {[%clk
0:02:53.1]} 8... dxc4 {[%clk 0:02:54.4]} 9. Bxc4 {[%clk 0:02:52.6]} 9... Nc6
{[%clk 0:02:54.4]} 10. h3 {[%clk 0:02:41.5]} 10... Bf5 {[%clk 0:02:46]} 11. a3
{[%clk 0:02:33.1]} 11... Bd6 {[%clk 0:02:43.4]} 12. Be3 {[%clk 0:02:08.2]} 12...
h6 {[%clk 0:02:33]} 13. b4 {[%clk 0:02:03.6]} 13... Be7 {[%clk 0:02:32.2]} 14.
Rc1 {[%clk 0:01:54.2]} 14... a6 {[%clk 0:02:29.4]} 15. Ng3 {[%clk 0:01:48.6]}
15... Bg6 {[%clk 0:02:28.1]} 16. Qd2 {[%clk 0:01:42.2]} 16... Kh7 {[%clk
0:02:25.7]} 17. f4 {[%clk 0:01:35.9]} 17... Bd6 {[%clk 0:02:17.8]} 18. f5 {[%clk
0:01:18.8]} 18... Bxg3 {[%clk 0:02:15.7]} 19. fxg6+ {[%clk 0:01:18.9]} 19...
fxg6 {[%clk 0:02:15.1]} 20. Qd3 {[%clk 0:01:12.6]} 20... Qe7 {[%clk 0:01:49.8]}
21. Bxh6 {[%clk 0:01:00.9]} 21... gxh6 {[%clk 0:01:34.7]} 22. Qxg3 {[%clk
0:01:00.4]} 22... Rf8 {[%clk 0:01:32.7]} 23. Bd3 {[%clk 0:00:57.9]} 23... Qg7
{[%clk 0:01:31.3]} 24. d5 {[%clk 0:00:48.5]} 24... Nh5 {[%clk 0:01:25.5]} 25.
Qe3 {[%clk 0:00:36.6]} 25... Rxf1+ {[%clk 0:01:23.5]} 26. Bxf1 {[%clk
0:00:37.4]} 26... Qd4 {[%clk 0:01:16.6]} 27. Qxd4 {[%clk 0:00:36.5]} 27... Nxd4
{[%clk 0:01:16.5]} 28. Ne4 {[%clk 0:00:33.9]} 28... Rc8 {[%clk 0:01:09.6]} 29.
g4 {[%clk 0:00:33.2]} 29... Nf4 {[%clk 0:01:07.8]} 30. Rc4 {[%clk 0:00:28.2]}
30... Nb5 {[%clk 0:00:41.7]} 31. a4 {[%clk 0:00:24.6]} 31... Na3 {[%clk
0:00:34.6]} 32. Rc1 {[%clk 0:00:24.4]} 32... Nxd5 {[%clk 0:00:31.8]} 33. Rc5
{[%clk 0:00:13.6]} 33... c6 {[%clk 0:00:30.9]} 34. Nd6 {[%clk 0:00:05.9]} 34...
Rc7 {[%clk 0:00:29.1]} 35. b5 {[%clk 0:00:03.8]} 35... axb5 {[%clk 0:00:28.6]}
36. axb5 {[%clk 0:00:04.2]} 36... Nb1 {[%clk 0:00:24.7]} 0-1

[Event "*** Titled Tuesday Blitz"]
[Site "Chess.com"]
[Date "2020.04.14"]
[Round "7"]
[White "TheCount"]
[Black "Sanyura"]
[Result "1-0"]
[WhiteElo "2603"]
[BlackElo "2410"]
[TimeControl "180+1"]
[EndTime "11:14:03 PDT"]
[Termination "TheCount won on time"]

1. e4 {[%clk 0:03:00.9]} 1... c5 {[%clk 0:02:59.6]} 2. Nf3 {[%clk 0:03:00.5]}
2... e6 {[%clk 0:02:58.1]} 3. d4 {[%clk 0:03:00.3]} 3... cxd4 {[%clk 0:02:57.2]}
4. Nxd4 {[%clk 0:03:01.2]} 4... Nc6 {[%clk 0:02:57]} 5. Nc3 {[%clk 0:03:00.7]}
5... Nf6 {[%clk 0:02:55.8]} 6. Be3 {[%clk 0:02:52.2]} 6... Bb4 {[%clk
0:02:55.4]} 7. Bd3 {[%clk 0:02:40.2]} 7... d5 {[%clk 0:02:55.2]} 8. Nxc6 {[%clk
0:02:26.5]} 8... bxc6 {[%clk 0:02:54.9]} 9. e5 {[%clk 0:02:17.7]} 9... Nd7
{[%clk 0:02:54.5]} 10. Qg4 {[%clk 0:02:14.3]} 10... Bxc3+ {[%clk 0:01:59.4]} 11.
bxc3 {[%clk 0:02:15.2]} 11... O-O {[%clk 0:01:59.1]} 12. Bh6 {[%clk 0:02:02.9]}
12... g6 {[%clk 0:01:52.4]} 13. f4 {[%clk 0:01:51.3]} 13... f5 {[%clk
0:01:48.5]} 14. exf6 {[%clk 0:01:40.3]} 14... Qxf6 {[%clk 0:01:09.2]} 15. Bxf8
{[%clk 0:01:26.3]} 15... Qxc3+ {[%clk 0:01:09]} 16. Kf2 {[%clk 0:01:23]} 16...
Nxf8 {[%clk 0:01:09.9]} 17. Qg5 {[%clk 0:01:16.2]} 17... Qd4+ {[%clk 0:01:07]}
18. Kf3 {[%clk 0:01:10.1]} 18... c5 {[%clk 0:01:04]} 19. Rad1 {[%clk 0:00:53.7]}
19... Qc3 {[%clk 0:00:58.2]} 20. Kf2 {[%clk 0:00:38.6]} 20... c4 {[%clk
0:00:54.6]} 21. Be2 {[%clk 0:00:38.9]} 21... Qxc2 {[%clk 0:00:50.5]} 22. h4
{[%clk 0:00:34.9]} 22... d4 {[%clk 0:00:27.5]} 23. Rxd4 {[%clk 0:00:29.7]} 23...
c3 {[%clk 0:00:14.9]} 24. Qe5 {[%clk 0:00:14.8]} 24... Qb2 {[%clk 0:00:08.3]}
25. Rd8 {[%clk 0:00:10.8]} 25... Rb8 {[%clk 0:00:06.1]} 26. Kg3 {[%clk
0:00:04.2]} 26... Ba6 {[%clk 0:00:01.4]} 27. Rxb8 {[%clk 0:00:03.6]} 27... Qa3
{[%clk 0:00:01.6]} 28. Rxf8+ {[%clk 0:00:02.8]} 28... Kxf8 {[%clk 0:00:01.1]}
29. Bxa6 {[%clk 0:00:03.7]} 1-0

[Event "*** Titled Tuesday Blitz"]
[Site "Chess.com"]
[Date "2020.04.14"]
[Round "7"]
[White "hazy13"]
[Black "Charlottemillard17"]
[Result "1-0"]
[WhiteElo "2193"]
[BlackElo "1375"]
[TimeControl "180+1"]
[EndTime "11:14:03 PDT"]
[Termination "hazy13 won on time"]

1. d4 {[%clk 0:03:00.9]} 1... Nf6 {[%clk 0:02:54.4]} 2. c4 {[%clk 0:03:00]} 2...
d5 {[%clk 0:02:51.7]} 3. cxd5 {[%clk 0:02:58.9]} 3... Nxd5 {[%clk 0:02:50.5]} 4.
Nf3 {[%clk 0:02:55.8]} 4... e6 {[%clk 0:02:50.5]} 5. e4 {[%clk 0:02:54.4]} 5...
Nf6 {[%clk 0:02:39.8]} 6. Nc3 {[%clk 0:02:52.9]} 6... Be7 {[%clk 0:02:29.6]} 7.
Bd3 {[%clk 0:02:46.2]} 7... O-O {[%clk 0:02:27.8]} 8. O-O {[%clk 0:02:42.5]}
8... b6 {[%clk 0:02:22.3]} 9. Bf4 {[%clk 0:02:18.2]} 9... Bb7 {[%clk 0:02:20.3]}
10. Rc1 {[%clk 0:02:16.1]} 10... c5 {[%clk 0:02:08.2]} 11. dxc5 {[%clk
0:02:07.3]} 11... Bxc5 {[%clk 0:02:06.9]} 12. Qe2 {[%clk 0:02:05]} 12... Nc6
{[%clk 0:02:02.3]} 13. Rfd1 {[%clk 0:02:02.1]} 13... Qe8 {[%clk 0:01:42.3]} 14.
Bb5 {[%clk 0:01:53.1]} 14... a6 {[%clk 0:01:37.8]} 15. Ba4 {[%clk 0:01:51.1]}
15... b5 {[%clk 0:01:29.3]} 16. Bxb5 {[%clk 0:01:34.5]} 16... axb5 {[%clk
0:01:21.1]} 17. Qxb5 {[%clk 0:01:35.4]} 17... Be7 {[%clk 0:01:05.5]} 18. Qxb7
{[%clk 0:01:31.2]} 18... Ra7 {[%clk 0:00:50.3]} 19. Qb6 {[%clk 0:01:21.8]} 19...
Nh5 {[%clk 0:00:42.5]} 20. Bg3 {[%clk 0:01:05]} 20... Nxg3 {[%clk 0:00:37.5]}
21. hxg3 {[%clk 0:01:05.9]} 21... Bd8 {[%clk 0:00:26.3]} 22. Qe3 {[%clk
0:00:52]} 22... Bf6 {[%clk 0:00:19.7]} 23. e5 {[%clk 0:00:42.8]} 23... Be7
{[%clk 0:00:17.3]} 24. a3 {[%clk 0:00:38.9]} 24... Rb7 {[%clk 0:00:15.1]} 25. b4
{[%clk 0:00:34.8]} 25... Qb8 {[%clk 0:00:13.4]} 26. Na4 {[%clk 0:00:24.9]} 26...
Ra7 {[%clk 0:00:10.5]} 27. Rxc6 {[%clk 0:00:19.5]} 27... Rxa4 {[%clk 0:00:09.5]}
28. Rd7 {[%clk 0:00:16]} 28... Re8 {[%clk 0:00:05.7]} 29. Rcc7 {[%clk
0:00:15.5]} 1-0

[Event "*** Titled Tuesday Blitz"]
[Site "Chess.com"]
[Date "2020.04.14"]
[Round "7"]
[White "Bad4life"]
[Black "ecwinslow"]
[Result "0-1"]
[WhiteElo "2307"]
[BlackElo "2108"]
[TimeControl "180+1"]
[EndTime "11:14:05 PDT"]
[Termination "ecwinslow won by checkmate"]

1. e4 {[%clk 0:03:00.9]} 1... c5 {[%clk 0:02:58.9]} 2. Nf3 {[%clk 0:03:00]} 2...
Nc6 {[%clk 0:02:55.4]} 3. Bb5 {[%clk 0:02:59.7]} 3... g6 {[%clk 0:02:53.1]} 4.
Bxc6 {[%clk 0:02:58]} 4... dxc6 {[%clk 0:02:51.5]} 5. d3 {[%clk 0:02:55.5]} 5...
Qc7 {[%clk 0:02:50.6]} 6. Be3 {[%clk 0:02:52.5]} 6... e5 {[%clk 0:02:48.4]} 7.
Nbd2 {[%clk 0:02:50]} 7... b6 {[%clk 0:02:44.1]} 8. a3 {[%clk 0:02:45.7]} 8...
f6 {[%clk 0:02:37.5]} 9. h4 {[%clk 0:02:44.2]} 9... Bg4 {[%clk 0:02:30.2]} 10.
Qb1 {[%clk 0:02:42]} 10... h5 {[%clk 0:02:02.1]} 11. Qa2 {[%clk 0:02:37.3]}
11... Qd7 {[%clk 0:01:55.1]} 12. Nh2 {[%clk 0:02:29.6]} 12... Be6 {[%clk
0:01:53.3]} 13. Qb1 {[%clk 0:02:29.3]} 13... Bh6 {[%clk 0:01:45.9]} 14. b4
{[%clk 0:02:23.6]} 14... cxb4 {[%clk 0:01:31.4]} 15. axb4 {[%clk 0:02:23.3]}
15... Bxe3 {[%clk 0:01:31.2]} 16. fxe3 {[%clk 0:02:23.3]} 16... Nh6 {[%clk
0:01:30.9]} 17. O-O {[%clk 0:02:18.6]} 17... O-O {[%clk 0:01:29.7]} 18. Qb2
{[%clk 0:02:13.3]} 18... Rac8 {[%clk 0:01:05.8]} 19. Rf3 {[%clk 0:02:10.8]}
19... c5 {[%clk 0:01:01.4]} 20. b5 {[%clk 0:01:54.5]} 20... Ng4 {[%clk
0:00:56.3]} 21. Ra3 {[%clk 0:01:42.7]} 21... Rf7 {[%clk 0:00:44]} 22. Nb1 {[%clk
0:01:20.8]} 22... Qe7 {[%clk 0:00:35.9]} 23. c4 {[%clk 0:01:14.2]} 23... Rd8
{[%clk 0:00:33.7]} 24. Qc2 {[%clk 0:00:59.3]} 24... Nxh2 {[%clk 0:00:32.7]} 25.
Kxh2 {[%clk 0:00:59]} 25... Bg4 {[%clk 0:00:32.8]} 26. Rf2 {[%clk 0:00:55.9]}
26... f5 {[%clk 0:00:32]} 27. Nc3 {[%clk 0:00:50.9]} 27... Qxh4+ {[%clk
0:00:30.6]} 28. Kg1 {[%clk 0:00:50.1]} 28... f4 {[%clk 0:00:30.3]} 29. Nd5
{[%clk 0:00:44.3]} 29... f3 {[%clk 0:00:24.8]} 30. Ra1 {[%clk 0:00:28.9]} 30...
Rdf8 {[%clk 0:00:19.1]} 31. Qb2 {[%clk 0:00:24.1]} 31... Re8 {[%clk 0:00:16.2]}
32. Raf1 {[%clk 0:00:20.2]} 32... Qg3 {[%clk 0:00:15.4]} 33. Qd2 {[%clk
0:00:15.9]} 33... h4 {[%clk 0:00:14.2]} 34. Kh1 {[%clk 0:00:11.8]} 34... h3
{[%clk 0:00:13.6]} 35. gxh3 {[%clk 0:00:09.9]} 35... Qxh3+ {[%clk 0:00:13]} 36.
Rh2 {[%clk 0:00:09.4]} 36... Qxf1# {[%clk 0:00:12.1]} 0-1